Cogmind - Beta 13 @@@ ROGUE MODE // 2024.04.17 @ 21:13:22 Player: robb Result: Destroyed by Y-45 Defender with Beam Rifle Performance ------------- Evolutions (1) 500 Regions Visited (4) 800 Robots Destroyed (31) 155 Value Destroyed (782) 782 Prototype IDs (1) 20 Alien Tech Used (0) 0 Bonus (85) 85 TOTAL SCORE: 2342 Bonus ------- Follower Combat Kills 85 Cogmind --------- Core Integrity 0/400 Matter 234/300 Energy 280/280 System Corruption 0% Temperature Cool (9) Movement Core (150) Ox2 Location -9/Storage Parts ------- > --- POWER (1) -------- Cooled Ion Engine > --- PROPULSION (3) --- (None) > --- UTILITY (3) ------ Terrain Scan Processor > --- WEAPON (2) ------- (None) > --- INVENTORY (5) ---- Light Ion Engine Peak State ------------ > --- POWER ------------ Cooled Ion Engine > --- PROPULSION ------- Aluminum Leg > --- UTILITY ---------- Terrain Scan Processor Medium Armor Plating Medium Armor Plating > --- WEAPON ----------- Light Cannon > --- INVENTORY -------- Light Ion Engine [Rating: 11] Favorites ----------- Power Light Ion Engine Engine Light Ion Engine Propulsion Improved Treads Treads Improved Treads Leg Aluminum Leg Flight Unit Flight Unit Utility Small Storage Unit Device Sensor Array Storage Small Storage Unit Processor Terrain Scan Processor Protection Medium Armor Plating Weapon Light Cannon Energy Gun EM Pulse Gun Ballistic Gun Light Assault Rifle Ballistic Cannon Light Cannon Launcher Rocket Launcher Build | -11 -10 -10 -9 -9 ------- Run | Yrd Mat Min Mat Sto Slots Evolved 2 | . . . 2 . Power . | . . . . . Propulsion 1 | . . . 1 . Utility 1 | . . . 1 . Weapon . | . . . . . Parts Attached 32 | 7 11 1 11 2 Power 6 | 1 2 . 3 . Engine 6 | 1 2 . 3 . Core . | . . . . . Reactor . | . . . . . Propulsion 9 | 2 4 . 3 . Treads 6 | 2 4 . . . Leg 1 | . . . 1 . Wheel . | . . . . . Hover . | . . . . . Flight 2 | . . . 2 . Utility 6 | 1 1 . 2 2 Device 2 | . 1 . 1 . Storage 1 | 1 . . . . Processor 1 | . . . 1 . Hackware . | . . . . . Protection 2 | . . . . 2 Artifact . | . . . . . Weapon 11 | 3 4 1 3 . Energy Gun 2 | 1 1 . . . Energy Cannon . | . . . . . Ballistic Gun 2 | 2 . . . . Ballistic Cannon 5 | . 3 1 1 . Launcher 2 | . . . 2 . Special Weapon . | . . . . . Impact Weapon . | . . . . . Slashing Weapon . | . . . . . Piercing Weapon . | . . . . . Special Melee Weapon . | . . . . . Unidentified Prototypes 1 | . . . 1 . Parts Lost 16 | . 4 . 8 4 Power 3 | . 2 . 1 . Propulsion 3 | . . . 2 1 Utility 4 | . . . 2 2 Weapon 6 | . 2 . 3 1 Highest Loss Streak 8 | . 3 . 8 3 To Critical Strikes . | . . . . . Average Slot Usage (%) 87 | . 90 100 55 48 Engine 13 | . 13 14 10 11 Treads 23 | . 27 28 . . Device 8 | . 7 14 10 . Storage 11 | . 14 14 . . Processor 1 | . . . 11 11 Ballistic Gun 4 | . 6 . . . Ballistic Cannon 19 | . 19 28 11 6 Naked Turns . | . . . . . Heaviest Build 25 | 13 17 15 11 25 Greatest Support 46 | 40 46 46 10 10 Greatest Overweight (x) 5 | 1 5 . 3 2 Average Overweight (x) . | . . . . . Largest Inventory Capacity 8 | 8 8 8 8 5 Average Capacity 7 | 7 8 8 5 5 Most Carried 8 | 5 8 8 8 3 Average Carried 6 | 3 7 8 2 . Final Capacity 8 | 8 8 8 5 5 Final Carried 8 | 4 8 8 . 1 Class Distribution -------------------- 96% | Mutant 3% | Scavenger-Scout Dominant Class ---------------- Mutant | -10/Materials Mutant | -10/Mines Mutant | -9/Materials Mutant | -9/Storage Resources | -11 -10 -10 -9 -9 ----------- Run | Yrd Mat Min Mat Sto Matter Collected 986 | 221 573 78 114 . Remotely . | . . . . . Salvage Created 882 | . 651 121 110 . Parts 50 | . 42 3 5 . Haulers Intercepted . | . . . . . Recyclers Shooed 2 | . 2 . . . Parts Field Recycled . | . . . . . Retrieved Matter . | . . . . . Parts Self-Destructed . | . . . . . Prevented . | . . . . . Kills | -11 -10 -10 -9 -9 ------- Run | Yrd Mat Min Mat Sto Combat Hostiles Destroyed 23 | . 15 2 6 . Guns 8 | . 8 . . . Cannons 11 | . 7 2 2 . AOE 4 | . . . 4 . Classes Destroyed 8 | . 7 . 1 . Worker 1 | . 1 . . . Builder 1 | . 1 . . . Tunneler 1 | . 1 . . . Recycler 4 | . 3 1 . . Operator 1 | . 1 . . . Swarmer 6 | . 6 . . . Grunt 15 | . 9 2 4 . Sentry 2 | . . . 2 . Best Kill Streak 8 | . 8 3 6 . Combat Bots Only 6 | . 5 2 6 . Max Kills in Single Turn 2 | . 2 1 2 . Gunslinging . | . . . . . Exploded 2 | . . . 2 . Melee . | . . . . . Uniques/NPCs Destroyed . | . . . . . Combat | -11 -10 -10 -9 -9 -------- Run | Yrd Mat Min Mat Sto Hostile Shots Fired 247 | . 140 11 43 53 Missed 66 | . 33 2 11 20 Damage Taken 2319 | . 1027 142 597 553 Core 553 | . 94 47 213 199 Absorbed by Shields . | . . . . . Core Remaining (%) 71 | 100 . 43 . . Volleys Fired 120 | . 94 7 15 4 Largest 2 | . 2 2 1 1 Hottest 70 | . 70 70 35 35 Shots Fired 204 | . 171 14 15 4 Gun 98 | . 98 . . . Cannon 101 | . 73 14 10 4 Launcher 5 | . . . 5 . Special . | . . . . . Kinetic 185 | . 157 14 10 4 Thermal . | . . . . . Explosive 5 | . . . 5 . Electromagnetic 14 | . 14 . . . Robot Hit Streak 11 | . 11 5 11 2 Robot Miss Streak 6 | . 6 1 1 1 Penetration Max . | . . . . . Secondary Targets 1 | . 1 . . . Max Gunslinging Chain 1 | . 1 . . . Shots Hit Robots 126 | . 102 9 12 3 Core Hits 51 | . 34 5 12 . Critical Kills . | . . . . . Critical Parts Destroyed . | . . . . . Critical Strikes 1 | . 1 . . . Blast 1 | . 1 . . . Melee Attacks . | . . . . . Impact . | . . . . . Slashing . | . . . . . Piercing . | . . . . . Sneak Attacks . | . . . . . Combat Hostiles . | . . . . . Follow-up Attacks . | . . . . . Damage Inflicted 2221 | . 1347 168 656 50 Guns 723 | . 723 . . . Cannons 977 | . 622 163 142 50 Explosions 506 | . . . 506 . Melee . | . . . . . Ramming 15 | . 2 5 8 . Kinetic 1613 | . 1258 163 142 50 Thermal . | . . . . . Explosive 506 | . . . 506 . Electromagnetic 87 | . 87 . . . Impact . | . . . . . Slashing . | . . . . . Piercing . | . . . . . Highest Corruption . | . . . . . Average Corruption . | . . . . . Corruption Purged . | . . . . . Corruption Blocked . | . . . . . Overload Shots . | . . . . . Overflow Damage 50 | . 19 . 31 . Projectiles 19 | . 19 . . . Explosions 31 | . . . 31 . Melee . | . . . . . Knockbacks 20 | . 16 2 . 2 Impact . | . . . . . Kinetic 19 | . 15 2 . 2 Secondary 1 | . 1 . . . Self-Inflicted Damage 122 | . . . 122 . Shots 5 | . . . 5 . Rammed 3 | . 1 1 1 . Targets Rammed 3 | . 1 1 1 . Kicked . | . . . . . Crushed . | . . . . . Highest Temperature 135 | . 81 135 23 8 Average Temperature 27 | . 22 75 9 4 Received Heat Transfer 777 | . 306 81 204 186 Siege Activations . | . . . . . Robots Corrupted . | . . . . . Combat Hostiles . | . . . . . Parts Fried 1 | . 1 . . . Impact Corruptions . | . . . . . Robots Melted . | . . . . . Combat Hostiles . | . . . . . Parts Melted . | . . . . . Heat Transferred . | . . . . . Parts Sabotaged . | . . . . . Parts Stolen . | . . . . . Parts Stripped . | . . . . . Power Chain Reactions . | . . . . . Alert | -11 -10 -10 -9 -9 ------- Run | Yrd Mat Min Mat Sto Peak Influence 235 | . 235 138 205 116 Initial 86 | . . 66 33 86 Average 95 | . 103 78 138 87 Maximum Alert Level 1 | . 1 . 1 . Low Security (%) 89 | 100 88 100 55 100 Level 1 10 | . 11 . 44 . Level 2 . | . . . . . Level 3 . | . . . . . Level 4 . | . . . . . Level 5 . | . . . . . High Security . | . . . . . Max Security . | . . . . . Squads Dispatched 3 | . 3 . . . Investigation 1 | . 1 . . . Extermination . | . . . . . Reinforcement 2 | . 2 . . . Assault . | . . . . . Garrison . | . . . . . Intercept . | . . . . . Searches Triggered . | . . . . . Construction Impeded . | . . . . . Haulers Reinforced . | . . . . . Active Scanning Responses . | . . . . . Cargo Convoy Interrupts . | . . . . . Stealth | -11 -10 -10 -9 -9 --------- Run | Yrd Mat Min Mat Sto Distress Signals 3 | . 3 . . . Communications Jammed . | . . . . . Distress Signals . | . . . . . Times Spotted 55 | . 36 6 10 3 Peak Tracking Total 7 | . 6 2 7 3 Tactical Retreats 4 | . 2 1 1 . Traps | -11 -10 -10 -9 -9 ------- Run | Yrd Mat Min Mat Sto Traps Triggered 3 | . 3 . . . Indirectly . | . . . . . Trap Hack Attempts . | . . . . . Triggered . | . . . . . Disarmed . | . . . . . Reprogrammed . | . . . . . Reused . | . . . . . Traps Extracted . | . . . . . Installed . | . . . . . Triggered . | . . . . . Machines | -11 -10 -10 -9 -9 ---------- Run | Yrd Mat Min Mat Sto Machines Disabled 3 | . 2 . . 1 Max in Single Turn 1 | . 1 . . 1 Machines Repaired . | . . . . . Machines Dismantled . | . . . . . Machines Sabotaged . | . . . . . Overloaded Fab Kills . | . . . . . Hacking | -11 -10 -10 -9 -9 --------- Run | Yrd Mat Min Mat Sto Machines Accessed 8 | . 6 . 2 . Terminals 7 | . 5 . 2 . Fabricators . | . . . . . Repair Stations . | . . . . . Recycling Units 1 | . 1 . . . Scanalyzers . | . . . . . Garrison Access . | . . . . . Total Hacks 20 | . 14 . 6 . Successful 12 | . 11 . 1 . Failed 8 | . 3 . 5 . Catastrophic 2 | . 1 . 1 . Database Lockouts . | . . . . . Manual 13 | . 8 . 5 . Terminals 18 | . 12 . 6 . Fabricators . | . . . . . Repair Stations . | . . . . . Recycling Units 2 | . 2 . . . Scanalyzers . | . . . . . Garrison Access . | . . . . . Terminal Hacks 10 | . 9 . 1 . Part Schematic 1 | . 1 . . . Terminal Index 2 | . 2 . . . Dispatch Records 1 | . 1 . . . Maintenance Status 1 | . 1 . . . Investigation Status 1 | . 1 . . . Hauler Manifests 3 | . 2 . 1 . Zone Layout 1 | . 1 . . . Fabricator Hacks . | . . . . . Repair Station Hacks . | . . . . . Recycling Unit Hacks 2 | . 2 . . . Report Inventory 1 | . 1 . . . Retrieve Matter 1 | . 1 . . . Scanalyzer . | . . . . . Garrison Access Hacks . | . . . . . Unauthorized Hacks . | . . . . . Terminals . | . . . . . Fabricators . | . . . . . Repair Stations . | . . . . . Recycling Units . | . . . . . Scanalyzers . | . . . . . Garrison Access . | . . . . . Data Cores Recovered 1 | . . . 1 . Used 1 | . . . 1 . Hacking Detections 6 | . 4 . 2 . Full Trace Events 2 | . 1 . 1 . Feedback Events . | . . . . . Feedback Blocked . | . . . . . Robot Schematics Acquired . | . . . . . Robots Built . | . . . . . Authchips . | . . . . . Time . | . . . . . Total Robot Build Rating . | . . . . . Part Schematics Acquired 1 | . 1 . . . Parts Built . | . . . . . Authchips . | . . . . . Time . | . . . . . Total Part Build Rating . | . . . . . Parts Repaired . | . . . . . Time . | . . . . . Parts Recycled . | . . . . . Recycled Matter . | . . . . . Retrieved Matter 38 | . 38 . . . Retrieved Components . | . . . . . Parts Scanalyzed . | . . . . . Part Schematics Acquired . | . . . . . Parts Damaged . | . . . . . Bothacking | -11 -10 -10 -9 -9 ------------ Run | Yrd Mat Min Mat Sto Used RIF Installer . | . . . . . Robots Hacked . | . . . . . Non-combat . | . . . . . Combat . | . . . . . Robot Hacks Applied . | . . . . . Relay Couplers Released . | . . . . . Fabnet Peak Effective % . | . . . . . Robots Rewired . | . . . . . Allies Hacked . | . . . . . Hacks Repelled . | . . . . . Allies | -11 -10 -10 -9 -9 -------- Run | Yrd Mat Min Mat Sto Total Allies 3 | . . 3 . . Largest Group 3 | . . 3 2 . Highest-Rated Group 40 | . . 40 32 . Highest-Rated Ally 16 | . . 16 16 . Total Orders . | . . . . . Ally Attacks 37 | . . 30 7 . Total Damage 436 | . . 386 50 . Kills 4 | . . 3 1 . Allies Corrupted . | . . . . . Allies Melted . | . . . . . Intel | -11 -10 -10 -9 -9 ------- Run | Yrd Mat Min Mat Sto Robot Analysis Total . | . . . . . Derelict Logs Recovered 1 | . . 1 . . Drone Launches . | . . . . . Drone Recoveries . | . . . . . Exploration | -11 -10 -10 -9 -9 ------------- Run | Yrd Mat Min Mat Sto Turns Passed 2622 | 85 1520 635 226 156 Spaces Moved 1431 | 51 720 355 222 83 Core 51 | 17 2 . 24 8 Treads 1107 | 34 718 355 . . Legs 99 | . . . 24 75 Wheels . | . . . . . Hover . | . . . . . Flight 174 | . . . 174 . Fastest Speed 37 | 50 160 160 37 120 Average Speed 146 | 127 160 160 71 172 Slowest Speed 300 | 160 300 160 200 260 Overloaded Moves . | . . . . . Propulsion Burnouts . | . . . . . Robots Hopped 1 | . . . 1 . Cave-ins Triggered . | . . . . . Exploration Rate (%) 43 | 4 89 84 19 19 Regions Visited 4 Branch Regions 2 Pre-discovered Areas . | . . . . . Known Exits Taken . | . . . . . Unknown Exits Taken 4 | 1 1 1 1 . Scrap Searched 1 | . . 1 . . Spaces Dug . | . . . . . Terrain Destroyed 52 | . . . 52 . Melee . | . . . . . Projectile . | . . . . . AOE 52 | . . . 52 . Terrain Rammed . | . . . . . Walls Destroyed . | . . . . . Machines Disabled . | . . . . . Actions | -11 -10 -10 -9 -9 --------- Run | Yrd Mat Min Mat Sto Total 1764 | 70 921 408 273 92 Wait 147 | 4 80 43 20 . Move 1425 | 50 719 354 219 83 Hop 1 | . . . 1 . Pick Up 25 | 9 10 1 2 3 Fast Attach 9 | 1 8 . . . Attach 17 | 5 3 . 7 2 Detach 1 | . . . 1 . Swap 6 | 1 . 1 4 . Drop 10 | . 6 1 3 . Fire 120 | . 94 7 15 4 Melee . | . . . . . Ram 1 | . . . 1 . Kick . | . . . . . Crush 2 | . 1 1 . . Escape Stasis . | . . . . . Rewire . | . . . . . Trap . | . . . . . Miscellaneous . | . . . . . Route ------- -11/Scrapyard -10/Materials (discovered 5 exits: *Mat x3 / [*Min x2]) -10/Mines -9/Materials (discovered 2 exits: Mat / [*Sto]) -9/Storage History --------- Turn | Location | Event 3 | -11/Scrapyard | Discovered new exit (range 16) 86 | -11/Scrapyard | Entered Materials 315 | -10/Materials | Build established: Mutant 483 | -10/Materials | Lost 3 parts (1p2w) 643 | -10/Materials | Discovered new exit (range 10) 798 | -10/Materials | Discovered new exit (range 5) 884 | -10/Materials | Discovered new exit (range 8) 936 | -10/Materials | Discovered new exit (range 14) 1082 | -10/Materials | Discovered new exit (range 9) 1606 | -10/Materials | Entered Mines 1819 | -10/Mines | Core integrity fell below 50% 1838 | -10/Mines | Learned 2 Materials zone layouts 1894 | -10/Mines | Assisted by bots powering up and referring to "LRC-V3" 2024 | -10/Mines | Received a Rocket Launcher from a helpful Derelict 2192 | -10/Mines | Discovered new exit (range 9) 2241 | -10/Mines | Entered Materials 2241 | -9/Materials | Accompanied by 2 allies 2241 | -9/Materials | Evolved 2 slots: Propulsion x1, Utility x1 2242 | -9/Materials | Identified exit to Materials 2304 | -9/Materials | Discovered new exit (range 16) 2389 | -9/Materials | Lost 8 parts (1p2n2u3w) 2424 | -9/Materials | Core integrity fell below 50% 2467 | -9/Materials | Entered Storage 2594 | -9/Storage | Lost 3 parts (2u1w) 2615 | -9/Storage | Core integrity fell below 20% 2623 | -9/Storage | Destroyed by Y-45 Defender with Beam Rifle Last Messages --------------- Acquired 4 matter. U-05 Engineer builds a Wall. Acquired Aluminum Leg. Acquired 56 matter. U-05 Engineer builds a Wall. LOCATION=UNKNOWN GOAL=ESCAPE Acquired Lgt. Ion Engine. Acquired Med. Armor Plating. K-01 Serf collects debris. U-05 Engineer builds a Door. L-31 Rogue knocked back. Storage Shell breached. G-34 Mercenary knocked back. Med. Armor Plating destroyed. Lgt. Cannon destroyed. K-01 Serf collects debris. U-05 Engineer builds a Door. Aluminum Leg destroyed. Critical hit (Burn: +37). Map ----- +----------------------------------------------------+ | ?????????????????????????????????????????? | | ?????????????????????????????????????????? | | ?????????????????????????????????????????? | | ?????????????????????????????????????????? | | ?????????????????????????????????????????? | | ?????????????????????????????????????????? | | ?????????????????????????????????????????? | | ?????????????????????????????????????????? | | ?????????????????????????????????????????? | | ?????????????????????????????????????????? | | ?????????????????????????????????????????? | | ?????????????????????????????????????????? | | ?????????????????????????????????????????? | | ?????????????????????????????????????????? | | ?????????????????????????????????????????? | | ?????????????????????????????????????????? | | ??????########???????????????????????????? | | ??????# #???????????????????????????? | | ??????# """ #???????????????????????????? | | ??????# """ #???????????????????????????? | | ???#??# """ #???????????????????????????? | | ???# ?# #???????????? #????????????? | | ???# ##+############### #????????????? | | ???# """T"""^ #????????????? | | ????#### ^ #????????????? | | ???????# l @ """ ??????????????? | | ???????#u ^ r """ ??????????????? | | ???????#Y """ ???????????????? | | ???????# ??????????????? | | ???????# k #????????????? | | ???????# #????????????? | | ???????# g ##"T"##"T"######????????????? | | ???????# ##"""#?"""#?????????????????? | | ########+# ######?####?????????????????? | | # # #???????????????????????????? | | # """" # #???????????????????????????? | | # "??"" # ########## ????????????????? | | # "??""" # ??????????????? | | # ""??!" / =??????????????? | | # ""?!" # ??????????????? | | # """% # ########## ???????????????? | | # # #???????????????????????????? | | # # #???????????????????????????? | | ########## #???????????????????????????? | | ?????????# #???????????????????????????? | | ?????????# #???????????????????????????? | | ########## #???????????????????????????? | | # # #???????????????????????????? | | # # #???????????????????????????? | | # # #???????????????????????????? | +----------------------------------------------------+ Best States ------------- Heat Dissipation 28 Energy Generation 14 Energy Capacity 280 Matter Stores 300 Matter Capacity 300 Sight Range 16 Robot Scan Range 14 Terrain Scan Range 14 Terrain Scan Density 85 Armor Coverage 450 Evasion (%) 62 Recoil Reduction 2 Item Schematics ----------------- Flight Unit | -10/Materials | Hacked Robot Schematics ------------------ None Fabricated ------------ Nothing Alien Tech Used ----------------- None Achievements -------------- None Challenges ------------ None Game ------ Seed SurgeTitaniumEngine Manual? 0 Play Time 00:24:04 Cumulative 17.2 hours Start 2024.04.17 @ 18:59:58 End 2024.04.17 @ 21:13:22 Sessions 3 Manual Loads 0 Difficulty Rogue Special Mode None Game No. 18 Rogue 18 Adventurer 0 Explorer 0 Win Type - Total 0 Types 0/0/0/0/0/0/0/0/0 Lore% 15 Gallery% 21 Achievement% 17 Wizard Run 0 Options --------- Layout 2 ASCII 0 Keyboard 0 Movement Mouse Keybinds 0 Fullscreen 1 Font 24/Smallcaps Map View 50x44 Zoom Use 0% Tactical HUD 0 Map Filters NONE Filters NONE Steam 1 RUN: d6b33429-81a1-4f04-89f1-b0d1b248603f